bitfinex/quotes_SOLUSD_20250201
["timestamp","ask_amount","ask_price","bid_price","bid_amount"]
[1738453624873,20.0,214.8,214.69,2.0]
[1738453625071,20.0,214.8,214.67,1.0]
[1738453625896,26.1288,214.78,214.64,0.063]
[1738453626081,26.1288,214.78,214.66,1.0]
[1738453626285,26.1288,214.78,214.68,1.0]
[1738453626586,26.1288,214.78,214.69,13.41184853]
[1738453626786,0.4656,214.77,214.7,1.0]
[1738453626979,0.4656,214.77,214.7,2.0]
[1738453627299,0.4656,214.77,214.74,1.0]
[1738453627682,0.4656,214.77,214.75,1.0]
[1738453628214,0.4656,214.77,214.73,14.41184853]
[1738453628715,1.6293,214.8,214.73,13.41184853]
[1738453628913,20.0,214.79,214.71,1.0]
[1738453629082,1.6293,214.8,214.7,1.0]
[1738453629986,20.0,214.78,214.7,1.0]
[1738453630493,1.6296,214.77,214.7,1.0]
[1738453631609,0.4656,214.77,214.73,1.0]
[1738453631804,0.4656,214.77,214.74,1.0]
[1738453632189,0.4656,214.77,214.75,15.11031451]
[1738453632593,0.4655,214.8,214.77,2.0]
[1738453633624,1.1636,214.85,214.78,14.11016103]
[1738453633923,1.1636,214.85,214.78,13.41184853]
[1738453636009,1.629,214.85,214.78,13.41184853]
[1738453636192,1.629,214.85,214.79,1.0]
[1738453636809,1.629,214.85,214.8,13.41184853]
[1738453637312,1.629,214.85,214.81,1.0]
[1738453637508,0.4654,214.85,214.82,13.41184853]
[1738453638517,0.03,214.86,214.82,13.41184853]
[1738453638724,0.03,214.86,214.79,2.0]
[1738453639208,0.03,214.86,214.8,13.41184853]
[1738453639515,0.03,214.86,214.81,1.0]
[1738453640814,0.03,214.86,214.82,13.41184853]
[1738453641690,0.03,214.86,214.83,1.0]
[1738453641890,0.03,214.86,214.85,1.0]
[1738453643106,0.03,214.86,214.83,1.6981541]
[1738453643107,0.03,214.86,214.84,13.41184853]
[1738453643814,0.03,214.86,214.83,1.0]
[1738453644117,0.03,214.86,214.81,1.0]
[1738453645624,0.03,214.86,214.83,1.0]
[1738453646324,0.03,214.86,214.85,1.0]
[1738453647904,0.03,214.86,214.84,1.0]
[1738453648514,0.03,214.86,214.82,13.41184853]
[1738453648710,0.03,214.86,214.8,1.0]
[1738453649723,0.03,214.86,214.78,1.0]
[1738453650105,0.03,214.86,214.79,1.0]
[1738453654217,0.03,214.86,214.81,1.0]
[1738453656445,0.03,214.86,214.79,2.0]
[1738453656824,0.03,214.86,214.81,1.0]
[1738453657342,0.03,214.86,214.82,1.0]
[1738453657523,0.03,214.86,214.81,1.0]
[1738453659614,0.03,214.86,214.78,1.0]
[1738453662552,20.0,214.85,214.78,1.0]
[1738453663654,1.1636,214.84,214.78,1.0]
[1738453664165,1.6112,214.83,214.78,1.0]
[1738453665720,21.6292,214.82,214.78,1.0]
[1738453668741,21.6292,214.82,214.78,2.0]
[1738453669739,0.4655,214.82,214.81,2.0]
[1738453670836,21.1935,214.86,214.81,2.0]
[1738453671047,21.1935,214.86,214.81,1.0]
[1738453671255,21.1935,214.86,214.81,2.0]
[1738453671550,20.03,214.86,214.83,1.0]
[1738453671850,0.03,214.86,214.83,2.0]
[1738453672029,0.03,214.86,214.85,1.0]
[1738453672230,0.03,214.86,214.85,2.0]
[1738453673151,0.03,214.86,214.85,15.41184853]
[1738453673523,0.03,214.86,214.85,14.41184853]
[1738453674647,0.03,214.86,214.85,24.5779552]
[1738453674823,0.03,214.86,214.85,14.41184853]
[1738453675548,0.03,214.86,214.81,2.6980646]
[1738453675728,0.03,214.86,214.81,1.0]
[1738453676341,0.03,214.86,214.79,2.0]
[1738453676643,1.629,214.85,214.79,1.0]
[1738453677047,1.629,214.85,214.79,2.0]
[1738453678443,1.629,214.85,214.79,1.0]
[1738453678644,1.629,214.85,214.79,2.0]
[1738453680041,1.629,214.85,214.83,1.0]
[1738453680244,0.4654,214.85,214.83,1.0]
[1738453680435,0.4654,214.85,214.83,2.0]
[1738453680844,0.03,214.86,214.83,2.0]
[1738453681026,0.03,214.86,214.83,1.0]
[1738453682460,0.03,214.86,214.82,0.6981769]
[1738453682461,0.03,214.86,214.81,2.0]
[1738453683149,0.03,214.86,214.79,1.0]
[1738453683949,1.5887,214.85,214.79,1.0]
[1738453684633,20.0,214.82,214.77,0.063]
[1738453684828,20.0,214.82,214.77,0.0001]
[1738453685046,1.6293,214.81,214.77,0.0001]
[1738453685235,1.6293,214.81,214.67,14.63589839]
[1738453686158,3.9569,214.81,214.66,13.41184853]
[1738453686353,20.0,214.77,214.65,7.32714577]
[1738453686656,20.0,214.72,214.65,7.32714577]
[1738453687233,1.63,214.71,214.65,7.32714577]
[1738453688634,1.63,214.71,214.64,0.063]
[1738453690353,21.63,214.71,214.64,0.063]
[1738453690857,1.63,214.71,214.64,0.063]
[1738453691047,1.63,214.71,214.65,13.41184853]
[1738453691048,0.4657,214.71,214.65,13.41184853]
[1738453691251,0.4657,214.71,214.66,0.69866097]
[1738453691444,0.4657,214.71,214.66,13.41184853]
[1738453692036,6.4909,214.75,214.66,13.41184853]
[1738453692236,1.6297,214.74,214.66,13.41184853]
[1738453692434,20.0,214.72,214.64,15.10488085]
[1738453692638,20.0,214.72,214.65,27.75502735]
[1738453692853,1.6297,214.74,214.66,15.04178746]
[1738453693056,1.6297,214.74,214.67,27.75502735]
[1738453693275,1.6297,214.74,214.64,0.063]
[1738453693276,0.4656,214.74,214.69,13.41184853]
[1738453693480,0.4656,214.74,214.7,0.69854856]
[1738453693776,0.4656,214.74,214.72,14.34317882]
[1738453693965,0.4655,214.78,214.72,13.41184853]
[1738453694256,1.6294,214.79,214.7,0.6984546]
[1738453694663,1.6294,214.79,214.7,13.41184853]
[1738453695355,1.6294,214.79,214.68,14.11042515]
[1738453695670,1.6294,214.79,214.7,13.41184853]
[1738453696044,1.6294,214.79,214.72,0.063]
[1738453699644,20.0,214.77,214.72,0.063]
[1738453700546,20.0,214.77,214.65,13.41184853]
[1738453701156,20.0,214.77,214.66,0.69870348]
[1738453701462,20.0,214.77,214.67,13.41184853]
[1738453701776,1.6296,214.76,214.67,13.41184853]
[1738453701962,1.6296,214.76,214.65,0.69867067]
[1738453702154,23.9577,214.76,214.66,13.41184853]
[1738453702975,23.9577,214.76,214.64,0.76171181]
[1738453703861,23.9577,214.76,214.65,13.41184853]
[1738453705347,23.9577,214.76,214.66,0.69869436]
[1738453705879,20.0,214.75,214.64,0.76168207]
[1738453706247,20.0,214.75,214.64,13.47484853]
[1738453706456,3.9577,214.76,214.64,0.063]
[1738453706653,21.5366,214.75,214.64,0.063]
[1738453706877,20.0,214.73,214.64,0.063]
[1738453707084,1.63,214.72,214.64,0.063]
[1738453707669,1.63,214.72,214.65,0.063]
[1738453707867,3.9586,214.72,214.65,0.063]
[1738453708570,20.0,214.68,214.65,0.063]
[1738453708962,20.0,214.68,214.58,0.69887251]
[1738453709168,1.5458,214.66,214.54,0.69892507]
[1738453709390,1.5458,214.66,214.5,0.063]
[1738453709778,13.41184853,214.65,214.5,0.063]
[1738453709961,20.0,214.61,214.5,0.063]
[1738453710156,20.0,214.61,214.5,13.47484853]
[1738453710361,20.0,214.61,214.51,0.69924316]
[1738453710564,20.0,214.61,214.52,13.41184853]
[1738453711392,0.4659,214.6,214.52,13.41184853]
[1738453711593,0.4659,214.6,214.54,22.59968708]
[1738453711892,0.4659,214.6,214.56,27.76095807]
[1738453712190,0.4658,214.65,214.6,13.41184853]
[1738453712486,6.2557,214.69,214.62,13.41184853]
[1738453712487,0.4657,214.69,214.62,13.41184853]
[1738453712870,0.4657,214.69,214.62,14.11062173]
[1738453713258,20.0,214.69,214.62,14.11062173]
[1738453713690,20.0,214.69,214.62,13.41184853]
[1738453714058,1.1644,214.7,214.62,13.41184853]
[1738453714885,1.6303,214.68,214.6,0.69883946]
[1738453715092,1.6303,214.68,214.58,0.69890816]
[1738453715593,1.6303,214.68,214.59,13.41184853]
[1738453715759,1.6303,214.68,214.56,0.69893642]
[1738453716171,1.6303,214.68,214.54,0.69902118]
[1738453716863,1.6303,214.68,214.58,14.34910954]
[1738453717164,1.6303,214.68,214.6,13.41184853]
[1738453717355,1.6303,214.68,214.61,0.69881556]
[1738453717897,1.6303,214.68,214.6,14.11067532]
[1738453718183,3.9593,214.68,214.55,0.69889629]
[1738453718355,3.9593,214.68,214.54,0.69903719]
[1738453718974,3.9593,214.68,214.54,13.41184853]
[1738453719582,3.9593,214.68,214.54,27.76095807]
[1738453719771,1.6303,214.68,214.58,13.41184853]
[1738453719973,17.558909,214.68,214.59,15.04798169]
[1738453720274,1.6303,214.68,214.59,15.04798169]
[1738453720872,1.6303,214.68,214.59,0.69887215]
[1738453721887,1.6303,214.68,214.6,13.41184853]
[1738453722201,1.6303,214.68,214.61,0.69885]
[1738453722877,1.6303,214.68,214.6,14.11069395]
[1738453723083,1.6303,214.68,214.58,14.11072577]
[1738453723476,20.0,214.62,214.55,0.063]
[1738453723821,3.1316,214.61,214.55,0.063]
[1738453725291,1.6308,214.61,214.55,0.063]
[1738453725685,1.1649,214.61,214.55,0.063]
[1738453725883,0.4658,214.64,214.57,14.34910954]
[1738453726091,0.4658,214.64,214.58,14.11075824]
[1738453726869,1.1647,214.65,214.58,14.11075824]
[1738453727167,1.6305,214.65,214.58,14.11075824]
[1738453728408,1.6305,214.65,214.56,0.69893095]
[1738453728596,1.6305,214.65,214.55,0.063]
[1738453729290,1.6305,214.65,214.56,13.41184853]
[1738453729779,1.6305,214.65,214.58,13.41184853]
[1738453729985,1.6305,214.65,214.6,13.41184853]
[1738453729986,0.4658,214.65,214.6,13.41184853]
[1738453730187,0.4658,214.65,214.61,0.69884231]
[1738453731198,0.4658,214.65,214.62,13.41184853]
[1738453731402,0.4658,214.68,214.64,13.41184853]
[1738453731606,0.03,214.69,214.68,13.41184853]
[1738453731780,0.03,214.69,214.68,14.11034985]
[1738453732902,0.03,214.69,214.66,0.69862301]
[1738453733100,0.03,214.69,214.64,0.69864097]
[1738453733287,0.03,214.68,214.67,13.41184853]
[1738453733602,0.03,214.68,214.67,28.45950282]
[1738453734183,0.03,214.68,214.67,14.11039328]
[1738453734508,0.03,214.68,214.67,28.45950282]
[1738453735596,0.03,214.68,214.67,14.11039328]
[1738453735799,0.03,214.68,214.66,27.76095807]
[1738453735998,0.03,214.68,214.67,0.69851536]
[1738453737693,0.03,214.68,214.67,28.45947343]
[1738453740330,0.03,214.68,214.67,33.11777343]
[1738453740817,0.03,214.68,214.67,39.51656343]
[1738453741000,0.03,214.68,214.67,42.27525343]
[1738453741203,0.03,214.68,214.67,41.27525343]
[1738453741397,0.03,214.68,214.67,36.36597343]
[1738453742003,0.03,214.68,214.67,41.02427343]
[1738453742720,0.4655,214.81,214.71,20.0]
[1738453742910,0.4655,214.81,214.73,13.41184853]
[1738453743110,0.4655,214.81,214.74,0.69840642]
[1738453743301,0.4655,214.81,214.72,20.0]
[1738453743492,0.4655,214.81,214.73,14.11028898]
[1738453743899,1.1639,214.79,214.7,0.69843647]
[1738453744201,1.1639,214.79,214.67,0.69853837]
[1738453744404,1.1639,214.79,214.68,13.41184853]
[1738453744710,1.1639,214.79,214.69,0.69854288]
[1738453745018,21.1639,214.79,214.69,0.69854288]
[1738453745628,1.1639,214.79,214.69,0.69854288]
[1738453745818,1.1639,214.79,214.7,27.76095807]
[1738453745999,1.1639,214.79,214.72,13.41184853]
[1738453746196,1.1639,214.79,214.73,0.69842017]
[1738453746606,0.4655,214.81,214.74,13.41184853]
[1738453746803,0.4655,214.81,214.76,13.41184853]
[1738453747023,0.4655,214.81,214.77,0.69834761]
[1738453747623,0.4655,214.81,214.78,13.41184853]
[1738453747923,0.4954,214.86,214.8,13.41184853]
[1738453748311,0.4954,214.86,214.81,0.69819859]
[1738453748901,0.4954,214.86,214.82,13.41184853]
[1738453749309,0.4954,214.86,214.79,13.41184853]
[1738453749509,0.4954,214.86,214.8,0.69818926]
[1738453750507,0.4954,214.86,214.81,13.41184853]
[1738453750710,0.4954,214.86,214.82,0.69816578]
[1738453751104,1.6589,214.86,214.75,15.04727694]
[1738453751306,1.6589,214.86,214.75,0.6981674]
[1738453751505,1.6589,214.86,214.74,20.0]
[1738453751713,1.6589,214.86,214.75,0.69835935]
[1738453751911,20.0,214.84,214.75,0.69835935]
[1738453752111,20.0,214.84,214.73,27.76095807]
[1738453752320,20.0,214.84,214.75,13.41184853]
[1738453752526,20.0,214.84,214.76,0.69834689]
[1738453753628,1.1637,214.83,214.76,0.69834689]
[1738453753819,1.1637,214.83,214.77,13.41184853]
[1738453754021,0.4654,214.85,214.79,13.41184853]
[1738453754228,0.4654,214.85,214.81,13.41184853]
[1738453755332,0.4954,214.86,214.81,13.41184853]
[1738453755518,0.4954,214.86,214.82,0.69816651]
[1738453756030,0.4954,214.86,214.83,13.41184853]
[1738453756221,0.4954,214.86,214.85,13.41184853]
[1738453757514,0.03,214.86,214.85,27.76095807]
[1738453757710,0.03,214.86,214.85,33.41535807]
[1738453758115,0.03,214.86,214.85,32.41535807]
[1738453758318,0.03,214.86,214.85,27.76095807]
[1738453759338,0.03,214.86,214.85,13.41184853]
[1738453760640,0.03,214.86,214.85,27.76095807]
[1738453761739,0.03,214.86,214.85,36.29659863]
[1738453761941,0.03,214.86,214.85,40.95099863]
[1738453762111,0.03,214.87,214.86,1.12549]
[1738453762317,0.03,214.9,214.89,34.41184853]
[1738453762638,0.03,214.9,214.89,57.99426462]
[1738453763419,0.03,214.9,214.89,62.64776462]
[1738453763923,0.03,214.9,214.89,61.64776462]
[1738453764736,0.03,214.9,214.89,56.99426462]
[1738453764915,0.03,214.9,214.89,34.10951452]
[1738453765119,0.03,214.9,214.89,14.10951452]
[1738453765320,0.03,214.9,214.89,13.41184853]
[1738453765539,0.03,214.9,214.89,14.10970449]
[1738453766254,0.03,214.9,214.89,36.99445459]
[1738453767848,0.03,214.9,214.89,14.10970449]
[1738453772443,0.03,214.9,214.89,36.99445459]
[1738453773178,0.03,214.9,214.89,41.64795459]
[1738453773358,0.03,214.96,214.93,20.0]
[1738453773562,0.03,214.96,214.95,36.29659863]
[1738453773879,0.03,214.96,214.95,40.94879863]
[1738453774339,0.03,214.96,214.95,36.29659863]
[1738453774749,0.03,214.96,214.95,36.99415734]
[1738453775374,0.03,214.96,214.95,14.10940724]
[1738453775880,0.03,214.96,214.95,41.64635734]
[1738453776581,0.03,214.96,214.95,42.64635734]
[1738453777960,0.03,214.96,214.95,41.77184734]
[1738453778462,0.03,214.96,214.95,41.89733734]
[1738453778659,0.03,215.01,214.99,20.0]
[1738453778959,0.03,215.01,215.0,36.99398652]
[1738453779949,0.03,215.01,215.0,41.64508652]
[1738453780148,0.03,215.01,215.0,41.89606652]
[1738453780351,0.03,215.08,215.01,14.53733853]
[1738453780568,0.03,215.08,215.01,39.01458863]
[1738453780880,0.03,215.08,215.01,37.88909863]
[1738453781246,0.03,215.08,215.0,23.58213799]
[1738453781450,0.03,215.08,215.0,0.69738789]
[1738453782159,0.03,215.08,215.01,13.41184853]
[1738453782577,0.03,215.08,215.01,41.07298863]
[1738453783649,0.03,215.08,215.01,32.46606348]
[1738453785160,0.03,215.08,215.01,32.59155348]
[1738453786188,0.03,215.08,215.05,20.0]
[1738453786408,0.03,215.08,215.07,27.81516348]
[1738453786596,0.03,215.08,215.07,27.68967348]
[1738453787477,0.03,215.08,215.07,13.41184853]
[1738453788701,0.03,215.08,215.07,0.69729001]
[1738453789003,0.03,215.08,215.07,20.69729001]
[1738453789507,0.03,215.08,215.07,0.69729001]
[1738453789681,0.03,215.08,215.05,34.10918292]
[1738453791904,0.03,215.08,215.05,14.10918292]
[1738453795098,0.03,215.08,215.05,28.38700787]
[1738453795325,0.03,215.08,215.06,14.27782495]
[1738453795499,0.03,215.08,215.07,48.38689761]
[1738453797626,0.03,215.12,215.08,13.41184853]
[1738453797804,0.03,215.12,215.11,13.41184853]
[1738453798106,0.03,215.12,215.11,14.10894501]
[1738453802302,0.03,215.12,215.11,13.41184853]
[1738453804264,0.03,215.12,215.1,0.697271]
[1738453804941,0.03,215.12,215.09,13.41184853]
[1738453805147,0.03,215.12,215.06,0.69726475]
[1738453805321,0.03,215.12,215.03,0.69735012]
[1738453805528,0.03,215.12,215.08,0.063]
[1738453809851,0.03,215.12,215.03,14.27782495]
[1738453809852,6.373,215.11,215.04,0.69735633]
[1738453810042,1.5745,215.1,215.02,0.063]
[1738453810428,0.4649,215.09,215.02,0.063]
[1738453810626,0.4649,215.09,215.03,13.41184853]
[1738453810841,0.4649,215.09,215.04,0.69746359]
[1738453812043,0.4649,215.09,215.03,0.69744982]
[1738453812251,1.6272,215.09,215.02,0.063]
[1738453814445,20.0,215.08,215.02,0.063]
[1738453815051,1.5745,215.07,214.93,0.69771628]
[1738453815250,20.0,215.06,214.93,13.41184853]
[1738453815558,20.0,215.06,214.95,13.41184853]
[1738453816027,21.0,215.06,214.94,0.69775363]
[1738453816231,20.0,215.02,214.93,0.6977758]
[1738453816536,1.6275,215.04,214.93,13.41184853]
[1738453816835,20.0,215.02,214.93,13.41184853]
[1738453817239,20.0,215.02,214.94,0.69778873]
[1738453817444,0.465,215.01,214.94,0.69778873]
[1738453818443,0.465,215.01,214.93,0.69775894]
[1738453823448,1.6275,215.04,214.93,0.69775894]
[1738453823845,20.0,215.02,214.91,14.10963701]
[1738453824136,2.6275,215.04,214.93,13.41184853]
[1738453824137,1.6275,215.04,214.93,13.41184853]
[1738453824340,1.6275,215.04,214.95,13.41184853]
[1738453824546,1.6275,215.04,214.96,0.69769497]
[1738453826963,0.465,215.04,214.97,27.68967348]
[1738453827165,0.465,215.04,214.99,13.41184853]
[1738453827344,0.465,215.04,215.0,0.69754693]
[1738453828757,20.0,215.02,214.93,0.69762273]
[1738453829062,20.0,215.02,214.94,0.063]
[1738453829561,20.0,215.02,214.94,0.76072381]
[1738453830059,1.6575,215.04,214.95,27.68967348]
[1738453830260,1.6575,215.04,214.97,13.41184853]
[1738453830460,0.495,215.04,214.99,13.41184853]
[1738453830681,0.495,215.04,215.0,0.69755906]
[1738453831872,0.03,215.04,215.0,0.69755906]
[1738453832577,0.03,215.04,214.95,20.0]
[1738453832867,0.03,215.04,214.96,0.69766374]
[1738453833065,0.03,215.04,214.94,0.76071143]
[1738453833480,0.03,215.04,214.95,13.41184853]
[1738453833769,0.03,215.04,214.96,0.69764859]
[1738453834648,20.03,215.04,214.94,0.063]
[1738453835264,20.0,215.0,214.94,0.063]
[1738453835462,1.6381,214.99,214.94,0.063]
[1738453835668,2.82945718,214.99,214.89,0.063]
[1738453836253,21.6279,214.98,214.89,0.063]
[1738453839079,0.4651,215.0,214.89,28.00365348]
[1738453839384,0.03,215.04,214.97,13.41184853]
[1738453839889,0.03,215.04,214.98,0.69766384]
[1738453841172,0.03,215.04,214.94,0.69764035]
[1738453841484,0.03,215.04,214.92,0.6977656]
[1738453841680,0.03,215.04,214.96,0.063]
[1738453841868,28.2835,215.03,214.96,0.063]
[1738453842577,1.6276,215.02,214.96,0.063]
[1738453848564,0.03,215.04,215.01,14.27782495]
[1738453848764,0.03,215.04,215.02,14.97537628]
[1738453848965,0.03,215.04,215.02,0.69755133]
[1738453849163,0.03,215.04,215.02,13.41184853]
[1738453852699,0.03,215.04,215.03,27.68967348]
[1738453852999,0.03,215.12,215.08,13.41184853]
[1738453853202,0.03,215.12,215.11,34.27782495]
[1738453853564,0.03,215.12,215.11,47.68967348]
[1738453854677,0.03,215.12,215.11,13.41184853]
[1738453855399,0.03,215.12,215.11,14.10905106]
[1738453855693,0.03,215.12,215.08,22.83812608]
[1738453855881,0.03,215.12,215.09,0.69725014]
[1738453856076,0.03,215.12,215.1,13.41184853]
[1738453856283,0.03,215.12,215.11,0.69720521]
[1738453858203,0.03,215.12,214.99,11.6281]
[1738453858204,0.03,215.12,215.09,0.69725206]
[1738453858383,0.03,215.12,215.07,0.69729399]
[1738453860178,0.03,215.12,215.05,0.69735251]
[1738453860594,0.03,215.12,215.06,13.41184853]
[1738453860906,0.03,215.12,215.07,0.69735775]
[1738453861802,0.03,215.12,215.05,0.69735446]
[1738453862007,0.03,215.12,214.99,23.53559806]
[1738453862207,0.03,215.12,214.99,0.69747198]
[1738453862410,20.03,215.12,215.0,13.41184853]
[1738453862595,20.03,215.12,215.01,0.69753572]
[1738453862785,20.03,215.12,215.0,0.69754822]
[1738453863302,1.6269,215.11,215.0,0.69754822]
[1738453864015,24.9512,215.11,214.98,0.69756222]
[1738453864183,24.9512,215.11,214.97,13.41184853]
[1738453864385,24.9512,215.11,214.96,0.76056222]
[1738453864890,24.9512,215.11,214.97,13.41184853]
[1738453865094,23.9512,215.11,215.01,22.83812608]
[1738453865299,23.9512,215.11,214.99,13.41184853]
[1738453865492,23.9512,215.11,215.0,0.69756981]
[1738453866100,23.9512,215.11,215.0,0.76056981]
[1738453866497,23.9512,215.11,215.0,23.59869589]
[1738453867398,23.9512,215.11,215.0,0.76056981]
[1738453867792,1.6269,215.11,215.0,0.76056981]
[1738453868289,1.0,215.09,215.0,0.063]
[1738453868704,20.0,215.05,215.0,0.063]
[1738453869200,1.6275,215.04,215.0,0.063]
[1738453873995,0.4649,215.07,215.02,20.0]
[1738453874196,0.4648,215.11,215.05,13.41184853]
[1738453874427,0.4648,215.11,215.06,0.69735783]
[1738453875225,0.4648,215.11,214.99,0.69736417]
[1738453875226,20.0,215.09,214.99,0.69736417]
[1738453875428,20.0,215.09,214.97,20.69757544]
[1738453876123,0.4649,215.08,214.99,13.41184853]
[1738453876291,0.4649,215.08,215.01,13.41184853]
[1738453876496,0.4649,215.08,215.02,0.69746368]
[1738453877325,7.5553,215.12,215.02,0.69746368]
[1738453877534,0.4648,215.11,215.03,13.41184853]
[1738453877728,0.4648,215.11,215.04,0.69740644]
[1738453878312,0.4648,215.11,215.05,13.41184853]
[1738453878628,0.4648,215.11,215.06,0.69731337]
[1738453879440,0.03,215.12,215.07,0.69731836]
[1738453879733,0.4948,215.12,215.05,13.41184853]
[1738453880234,0.4948,215.12,215.06,0.69738302]
[1738453880599,0.03,215.12,215.06,0.69738302]
[1738453883736,0.03,215.12,215.0,0.76033371]
[1738453883907,0.03,215.12,215.0,0.063]
[1738453884107,20.03,215.12,215.0,0.7605343]
[1738453884706,3.9512,215.11,215.0,0.063]
[1738453886129,6.2916,215.07,215.0,0.063]
[1738453886931,1.6273,215.06,215.0,0.063]
[1738453887930,20.0,215.04,215.0,0.063]
[1738453888532,1.6273,215.06,215.0,0.063]
[1738453889064,20.0,215.04,215.0,0.063]
[1738453889722,0.465,215.03,215.0,0.063]
[1738453899243,21.6314,215.02,215.0,0.0001]
[1738453900542,0.465,215.01,215.0,0.0001]
[1738453905651,1.6277,215.01,214.96,0.063]
[1738453907825,3.9531,215.01,214.94,0.063]
[1738453913259,3.9531,215.01,214.89,0.76090684]
[1738453913260,20.0,214.97,214.89,0.76090684]
[1738453913439,20.0,214.97,214.89,0.063]
[1738453915464,1.6282,214.96,214.89,0.063]
[1738453918265,21.6282,214.96,214.89,0.063]
[1738453918568,1.6282,214.96,214.89,0.063]
[1738453920370,0.4652,214.96,214.89,0.063]
[1738453920675,0.4652,214.96,214.9,27.70433057]
[1738453920852,0.4652,214.96,214.91,0.69783603]
[1738453921054,0.4652,214.96,214.9,14.10972782]
[1738453921461,0.4652,214.96,214.89,0.063]
[1738453921660,0.4652,214.96,214.84,0.62796271]
[1738453921876,1.6282,214.96,214.85,0.69804642]
[1738453922749,3.9542,214.96,214.85,0.69804642]
[1738453924072,1.6282,214.96,214.86,13.41184853]
[1738453924259,1.6282,214.96,214.86,14.10984862]
[1738453925272,1.6282,214.96,214.85,0.69796718]
[1738453925486,1.6282,214.96,214.84,0.62796271]
[1738453926451,1.163,214.96,214.84,0.62796271]
[1738453928877,20.0,214.94,214.84,0.62796271]
[1738453929378,1.6283,214.93,214.84,0.62796271]
[1738453930285,1.6283,214.93,214.85,13.41184853]
[1738453930487,1.6314,215.02,214.88,13.41184853]
[1738453930782,1.6278,215.0,214.9,13.41184853]
[1738453930959,20.0,214.98,214.91,0.69783271]
[1738453931483,0.4651,214.97,214.92,13.41184853]
[1738453931675,0.4651,214.97,214.93,0.69776784]
[1738453933182,0.4651,215.0,214.94,13.41184853]
[1738453933490,0.4651,215.0,214.96,13.41184853]
[1738453933661,0.03,215.01,214.97,0.69764293]
[1738453933857,0.495,215.01,214.97,0.69764293]
[1738453934083,0.495,215.01,214.98,13.41184853]
[1738453934396,0.495,215.01,214.99,0.69757485]
[1738453934679,0.495,215.01,214.98,13.41184853]
[1738453934880,0.03,215.01,214.99,0.69758189]
[1738453935079,0.03,215.01,214.98,13.41184853]
[1738453935682,0.03,215.01,214.99,0.69762452]
[1738453936977,0.03,215.01,215.0,13.41184853]
[1738453937365,0.03,215.01,215.0,14.10936827]
[1738453937566,0.03,215.01,215.0,13.41184853]
[1738453938581,0.03,215.01,214.98,13.41184853]
[1738453938880,0.03,215.01,214.99,0.69747144]
[1738453939489,0.03,215.01,214.97,0.69751892]
[1738453939670,0.03,215.01,214.96,13.41184853]
[1738453939870,0.03,215.01,214.97,0.69758776]
[1738453941085,0.03,215.01,215.0,13.41184853]
[1738453941386,0.03,215.01,215.0,14.1093873]
[1738453943798,20.0,215.1,215.0,14.1093873]
[1738453944302,20.0,215.1,215.0,0.69753877]
[1738453944478,20.0,215.1,214.94,0.69762936]
[1738453944671,20.0,215.1,214.95,13.41184853]
[1738453944993,20.0,215.1,214.97,13.41184853]
[1738453945181,23.9518,215.09,214.93,2.24074721]
[1738453945492,23.9518,215.09,214.94,13.41184853]
[1738453945493,20.0,215.07,214.94,13.41184853]
[1738453945687,20.0,215.07,214.95,0.69771658]
[1738453945866,20.0,215.07,214.94,0.69772569]
[1738453946498,22.0,215.1,214.95,13.41184853]